bitfinex-derivatives/quotes_ETHF0:USTF0_20250810
["timestamp","ask_amount","ask_price","bid_price","bid_amount"]
[1754840426203,0.4388,4218.9,4218.8,1.5534]
[1754840426701,1.1323,4218.9,4218.8,1.5534]
[1754840427694,1.3143,4218.9,4218.8,1.5534]
[1754840428603,2.05675,4219.4,4219.3,1.2998]
[1754840428806,1.5828,4219.1,4219.0,1.2948]
[1754840429301,0.6208,4219.1,4219.0,1.5534]
[1754840429504,0.8596,4219.1,4219.0,1.5534]
[1754840429804,1.5828,4219.1,4219.0,1.5534]
[1754840432594,1.3101,4218.8,4218.7,1.2998]
[1754840432800,1.5828,4218.8,4218.7,1.2998]
[1754840433101,1.5828,4218.8,4218.7,0.4471]
[1754840433307,1.5828,4218.8,4218.7,0.7057]
[1754840433807,0.4388,4218.8,4218.7,1.5534]
[1754840434002,0.1708,4219.4,4219.3,0.1832]
[1754840434306,0.1708,4219.4,4219.3,1.5534]
[1754840434307,0.8596,4219.4,4219.3,1.5534]
[1754840434999,1.5828,4219.4,4219.3,1.5534]
[1754840435506,1.5828,4219.4,4219.3,2.02736]
[1754840435705,1.5828,4219.4,4219.3,1.5534]
[1754840437202,1.3101,4219.4,4219.3,1.5534]
[1754840438507,1.5677,4219.4,4219.3,1.5534]
[1754840440905,0.4388,4219.4,4219.3,1.5534]
[1754840441106,1.531,4219.7,4219.6,2.04633]
[1754840441302,0.8741,4219.7,4219.6,2.04633]
[1754840441510,1.2734,4219.7,4219.6,2.04633]
[1754840441707,1.531,4219.7,4219.6,2.04633]
[1754840444518,0.1745,4219.9,4219.8,1.7857]
[1754840444718,0.4423,4219.9,4219.8,2.0463]
[1754840445211,0.4423,4220.2,4220.1,1.5724]
[1754840445413,0.1745,4220.2,4220.1,1.5724]
[1754840445713,0.4423,4220.2,4220.1,1.5724]
[1754840447715,1.0117,4220.2,4220.1,1.5724]
[1754840447904,1.531,4220.2,4220.1,1.5724]
[1754840449518,1.2632,4219.5,4219.4,2.04635]
[1754840449708,1.531,4219.5,4219.4,2.04635]
[1754840450010,1.531,4219.5,4219.4,1.5724]
[1754840450210,1.531,4219.5,4219.4,1.295]
[1754840450608,1.531,4219.5,4219.4,0.69556014]
[1754840451810,0.8741,4219.0,4218.9,2.75186772]
[1754840452011,1.531,4219.0,4218.9,0.6229]
[1754840452216,1.531,4219.0,4218.6,0.2774]
[1754840452518,1.531,4218.6,4218.5,0.6229]
[1754840452814,1.531,4218.6,4218.5,1.5724]
[1754840453210,1.531,4218.6,4218.5,1.014]
[1754840456022,1.531,4218.6,4218.5,1.295]
[1754840456822,1.531,4218.6,4218.5,1.5724]
[1754840457320,1.531,4218.6,4218.5,1.295]
[1754840457621,1.531,4218.6,4218.5,1.014]
[1754840457821,1.531,4218.3,4218.2,1.295]
[1754840458124,2.00507,4218.3,4218.2,1.295]
[1754840459023,2.00507,4218.3,4218.2,1.5724]
[1754840459521,1.531,4218.3,4218.2,1.5724]
[1754840459725,1.1317,4218.3,4218.2,1.5724]
[1754840459913,1.531,4218.3,4218.2,1.5724]
[1754840460721,0.64853,4218.7,4218.6,0.6229]
[1754840460926,0.91633,4218.7,4218.6,1.5724]
[1754840461123,1.17393,4218.7,4218.6,1.5724]
[1754840461328,0.6999,4218.7,4218.6,1.5724]
[1754840462027,1.531,4218.7,4218.6,1.5724]
[1754840464025,0.47407,4218.4,4218.1,2.04649]
[1754840464223,0.6671,4218.5,4218.3,0.6229]
[1754840464427,0.81866,4218.5,4218.4,1.5724]
[1754840464623,1.34406,4218.5,4218.4,1.5724]
[1754840464923,2.00506,4218.5,4218.4,1.5724]
[1754840465630,1.5559,4218.1,4218.0,1.3068]
[1754840466428,1.5559,4218.1,4218.0,1.0271]
[1754840467018,1.5559,4218.1,4218.0,1.3068]
[1754840467430,1.5559,4218.1,4218.0,0.6192]
[1754840467626,0.6221,4217.8,4217.7,1.0271]
[1754840467832,1.2939,4217.8,4217.7,1.53735332]
[1754840468032,1.5559,4217.8,4217.7,1.3068]
[1754840468441,2.03003,4217.8,4217.7,1.3068]
[1754840469934,0.6221,4217.5,4217.4,1.3068]
[1754840470126,1.5559,4217.5,4217.4,1.5746]
[1754840470826,1.1578,4217.5,4217.4,1.5746]
[1754840471027,1.1578,4217.9,4217.8,1.5746]
[1754840471436,0.262,4217.9,4217.1,22.2402]
[1754840471628,2.03003,4217.8,4217.7,0.443]
[1754840471935,2.03003,4217.8,4217.7,1.3068]
[1754840472326,2.03003,4217.8,4217.7,1.5746]
[1754840472529,1.36055,4217.6,4217.5,1.5746]
[1754840472727,1.75865,4217.6,4217.5,1.5746]
[1754840472928,1.2845,4217.6,4217.5,1.5746]
[1754840473128,0.74782,4217.9,4217.5,1.09336]
[1754840473334,1.5559,4217.9,4217.8,0.6192]
[1754840473538,2.03005,4217.6,4217.5,1.5746]
[1754840473827,1.5559,4217.6,4217.5,1.5746]
[1754840474030,1.1578,4217.6,4217.5,1.5746]
[1754840474728,0.47415,4217.6,4217.5,1.5746]
[1754840475626,0.74785,4217.6,4217.5,1.5746]
[1754840475836,0.47414,4217.7,4217.5,1.5746]
[1754840476035,1.2845,4217.9,4217.8,1.5746]
[1754840476230,0.1693,4217.9,4217.8,1.5746]
[1754840476627,0.6221,4218.3,4218.2,1.5746]
[1754840476825,1.5559,4218.3,4218.2,1.5746]
[1754840477331,1.1578,4218.3,4218.2,1.5746]
[1754840477635,1.5559,4218.3,4218.2,1.5746]
[1754840479327,0.6221,4218.6,4218.5,0.6192]
[1754840479523,1.5559,4218.6,4218.5,1.5746]
[1754840480530,0.73596,4219.3,4218.6,0.4079]
[1754840480732,0.14981899,4219.5,4219.1,1.5746]
[1754840480733,1.5559,4219.2,4219.1,1.5746]
[1754840481030,0.6695,4219.5,4219.4,0.2739]
[1754840481235,1.5559,4219.5,4219.4,1.1667]
[1754840481438,1.5559,4219.5,4219.4,1.5746]
[1754840481739,1.5559,4219.5,4219.4,2.04855]
[1754840482032,1.1578,4219.5,4219.4,2.04855]
[1754840482235,1.5559,4220.2,4220.1,1.5746]
[1754840482535,1.5559,4220.2,4220.1,1.3068]
[1754840482732,1.5559,4220.2,4220.1,1.5746]
[1754840485835,1.1578,4220.6,4220.5,0.47382]
[1754840486033,0.6244,4220.9,4220.8,1.76869]
[1754840486232,1.5559,4221.2,4221.1,2.04836]
[1754840486432,1.5559,4221.2,4221.1,1.5746]
[1754840487432,1.5559,4220.9,4220.8,1.5746]
[1754840487637,0.6244,4220.9,4220.8,1.5746]
[1754840488536,1.5559,4220.9,4220.8,1.5746]
[1754840489140,1.5559,4220.9,4219.9,1.22959149]
[1754840489141,0.9338,4221.7,4220.5,0.9554]
[1754840489345,0.3507,4221.1,4221.0,0.81907]
[1754840489533,0.8864,4221.1,4221.0,2.04837]
[1754840490834,0.6244,4221.1,4221.0,2.04837]
[1754840491035,0.3981,4221.3,4221.2,1.09294]
[1754840491232,0.8411,4221.3,4221.2,2.04834]
[1754840491537,1.5559,4222.0,4221.9,1.5746]
[1754840492228,1.5559,4222.0,4221.9,1.3068]
[1754840492638,1.5559,4222.0,4221.9,1.0271]
[1754840493034,1.2822,4221.7,4221.6,2.0483]
[1754840493238,1.5559,4221.7,4221.6,1.5746]
[1754840493434,1.5559,4221.5,4221.4,1.54541733]
[1754840493743,1.5559,4221.5,4221.4,1.5746]
[1754840494241,1.1578,4221.5,4221.4,1.5746]
[1754840495348,0.8958,4221.5,4221.4,1.5746]
[1754840495846,1.162,4221.5,4221.4,1.5746]
[1754840496634,1.5361,4221.8,4221.7,0.6301]
[1754840496845,1.5361,4221.8,4221.7,1.5459]
[1754840497048,0.1794,4221.8,4221.7,2.01959]
[1754840497239,1.5263,4222.1,4222.0,2.01956]
[1754840497538,1.5263,4222.1,4222.0,1.5459]
[1754840497936,0.8718,4222.1,4222.0,1.5459]
[1754840498239,1.138,4222.1,4222.0,1.5459]
[1754840498948,0.3489,4222.1,4222.0,1.5459]
[1754840499140,1.5263,4222.1,4222.0,1.5459]
[1754840499447,1.5263,4222.1,4222.0,1.1049]
[1754840499745,1.5263,4222.1,4222.0,1.2853]
[1754840500443,1.5263,4222.1,4222.0,1.5459]
[1754840500646,1.5263,4222.1,4222.0,2.01956]
[1754840500945,1.138,4222.1,4222.0,2.01956]
[1754840501243,1.2594,4222.4,4222.3,0.6301]
[1754840501439,1.2594,4222.4,4222.3,1.5459]
[1754840501842,1.5263,4222.4,4222.3,1.5459]
[1754840503244,1.138,4222.4,4222.1,0.47363]
[1754840503446,0.6049,4221.1,4221.0,0.82118946]
[1754840503747,1.138,4221.4,4221.3,1.33139132]
[1754840503942,1.5263,4221.4,4221.3,1.33139132]
[1754840504644,1.138,4222.0,4221.9,0.4497]
[1754840504844,1.5263,4222.0,4221.9,1.5459]
[1754840505948,1.1839,4222.9,4221.9,1.5459]
[1754840505949,0.5331,4222.5,4222.2,0.47363]
[1754840506150,1.5263,4222.5,4222.4,1.5459]
[1754840507243,1.5263,4222.5,4222.4,1.2853]
[1754840507738,1.5263,4222.5,4222.4,1.75891]
[1754840507943,1.5263,4222.5,4222.4,2.01951]
[1754840508449,1.5263,4222.5,4222.4,1.5459]
[1754840509945,0.8718,4222.5,4222.4,1.5459]
[1754840510445,1.5263,4222.5,4222.4,1.5459]
[1754840511741,1.5263,4222.5,4222.4,1.2853]
[1754840511948,1.5263,4222.5,4222.4,0.8518]
[1754840512344,1.5263,4222.5,4222.4,1.0322]
[1754840512540,1.5263,4222.5,4222.4,0.1744]
[1754840512849,1.2594,4222.1,4222.0,2.01954]
[1754840513248,1.5263,4222.1,4222.0,2.01954]
[1754840513948,1.5263,4222.1,4222.0,1.5459]
[1754840517849,0.6049,4221.8,4221.7,0.47368]
[1754840518053,1.5263,4221.7,4221.6,0.1744]
[1754840518353,1.5263,4221.7,4221.0,21.732]
[1754840518354,0.6049,4221.3,4221.2,0.6301]
[1754840518542,1.138,4221.3,4221.2,0.6301]
[1754840518948,1.138,4221.3,4221.2,1.5459]
[1754840519146,1.5263,4221.3,4221.2,1.5459]
[1754840519553,1.5263,4221.3,4220.9,0.9158]
[1754840519749,0.6049,4221.0,4220.9,1.5459]
[1754840520055,1.5263,4221.4,4221.3,1.5459]
[1754840520352,0.4255,4221.1,4221.0,0.8578]
[1754840520551,1.5263,4221.1,4221.0,1.2853]
[1754840520746,0.9214,4221.0,4220.9,0.1744]
[1754840520945,1.5263,4221.0,4220.6,0.47381]
[1754840521146,0.6049,4220.7,4220.6,0.64821]
[1754840521351,1.5263,4220.7,4220.6,0.1744]
[1754840521546,0.6049,4220.2,4220.1,23.72187057]
[1754840521746,0.6049,4220.2,4220.1,23.74577]
[1754840521747,0.8718,4220.2,4220.1,23.74577]
[1754840521943,0.6049,4220.2,4220.1,23.74577]
[1754840522245,1.5263,4220.4,4220.3,2.01975]
[1754840522449,0.86204,4221.3,4220.7,0.6301]
[1754840522648,0.1794,4220.9,4220.8,1.5459]
[1754840522957,0.9932,4220.2,4220.1,1.2853]
[1754840523158,1.5263,4220.2,4220.1,1.0322]
[1754840523455,1.5263,4220.2,4219.9,35.10740029]
[1754840523456,1.07876,4220.2,4219.9,0.23991029]
[1754840523657,0.6049,4219.9,4219.6,0.47391]
[1754840523956,1.5263,4219.8,4219.7,1.2853]
[1754840524155,1.5263,4219.8,4219.7,0.4640488]
[1754840524451,1.5263,4219.8,4219.7,0.82871]
[1754840524755,1.5263,4219.8,4219.7,1.75921]
[1754840524951,1.5263,4219.8,4219.7,1.2853]
[1754840525149,1.5263,4219.8,4219.7,0.6301]
[1754840525345,1.5263,4219.8,4219.7,0.1744]
[1754840525757,1.5263,4219.8,4219.4,21.9625077]
[1754840525758,0.6458,4219.7,4219.4,21.9625077]
[1754840526057,1.5489,4219.5,4219.4,22.0739]
[1754840526257,1.5489,4219.5,4219.4,22.9957]
[1754840526453,1.5489,4219.5,4219.4,23.265]
[1754840528557,1.1642,4219.5,4219.4,23.265]
[1754840528747,0.4559,4219.5,4219.4,23.265]
[1754840530858,1.5489,4219.5,4219.4,23.265]
[1754840531455,1.5489,4219.5,4218.8,0.47402]
[1754840531456,0.47397,4219.3,4218.8,0.47402]
[1754840531760,1.5489,4218.9,4218.8,23.0017]
[1754840531961,1.5489,4218.9,4218.8,22.3349]
[1754840533353,1.5489,4218.9,4217.8,0.19193333]
[1754840533354,0.9126,4218.8,4217.9,0.9361]
[1754840533555,0.6363,4218.4,4218.3,1.07597]
[1754840533754,1.5489,4218.4,4218.3,2.01207]
[1754840534354,1.021,4218.8,4218.7,1.74272]
[1754840534557,1.5489,4218.8,4218.7,2.01202]
[1754840534862,1.5489,4218.8,4218.7,1.538]
[1754840535263,2.02292,4218.8,4218.7,0.1704]
[1754840535462,1.5489,4218.8,4218.5,21.735]
[1754840535757,0.6363,4218.8,4218.7,1.1065]
[1754840535962,0.6363,4218.8,4218.7,1.538]
[1754840536360,1.5489,4218.8,4218.7,1.538]
[1754840537366,1.5489,4218.8,4218.7,1.2687]
[1754840539565,0.3847,4218.7,4217.6,0.2693]
[1754840539768,0.6363,4218.2,4218.1,1.07598]
[1754840539963,1.5489,4218.2,4218.1,1.538]
[1754840541164,0.92543,4218.7,4218.6,0.4315]
[1754840541365,2.02293,4218.7,4218.6,1.0983]
[1754840541671,2.02293,4218.7,4218.4,0.2693]
[1754840541860,1.5489,4218.5,4218.4,1.538]
[1754840542265,0.4517,4218.6,4218.5,1.538]
[1754840542471,1.2878,4218.6,4218.5,1.538]
[1754840542672,1.5489,4218.6,4218.5,1.538]
[1754840546782,0.4559,4218.6,4218.5,1.538]
[1754840546980,0.73513,4218.8,4218.5,1.538]
[1754840547179,1.37707,4219.4,4219.3,0.6019]
[1754840547382,1.11029,4219.2,4219.0,21.738]
[1754840547589,1.11029,4219.2,4218.8,22.4048]
[1754840547788,0.6363,4218.9,4218.8,22.3399]
[1754840547986,1.5489,4218.9,4218.8,23.276]
[1754840548287,0.6363,4218.4,4218.3,21.9084]
[1754840548488,1.5489,4218.4,4218.3,22.4955]
[1754840548685,1.5489,4218.4,4218.3,23.0067]
[1754840548882,1.5489,4218.4,4218.3,21.738]
[1754840550092,1.5489,4218.4,4218.3,22.4955]
[1754840550484,1.5489,4218.4,4218.3,1.0125]
[1754840550685,1.5489,4218.4,4218.3,1.538]
[1754840550880,0.9126,4219.4,4218.3,0.9361]
[1754840551091,1.2779,4219.0,4218.9,0.3469]
[1754840551389,1.5489,4219.0,4218.9,1.0125]
[1754840552086,1.5489,4219.0,4218.9,1.538]
[1754840552290,1.5489,4219.0,4218.6,0.47404]
[1754840552489,1.5489,4218.7,4218.6,1.74274]
[1754840552689,1.5489,4218.7,4218.6,2.01204]
[1754840552885,0.6363,4219.0,4218.9,1.74271]
[1754840553084,0.7227,4219.2,4219.1,2.01199]
[1754840553491,0.9031,4219.2,4219.1,2.01199]
[1754840553792,1.5489,4219.2,4219.1,2.01199]
[1754840555192,1.5489,4219.2,4219.1,1.538]
[1754840555587,0.5274,4219.9,4219.4,1.78255]
[1754840555788,1.0013,4219.7,4219.6,0.622]
[1754840555986,1.2698,4219.7,4219.6,0.622]
[1754840556186,1.5287,4219.7,4219.6,0.622]
[1754840556388,1.5287,4219.7,4219.6,1.5717]
[1754840556891,1.2602,4220.0,4219.9,0.622]
[1754840557191,1.5287,4220.0,4219.9,2.0456]
[1754840557390,1.5287,4220.0,4219.9,0.4739]
[1754840558891,1.5287,4220.0,4219.9,0.8335]
[1754840559189,1.5287,4220.0,4219.9,1.7825]
[1754840559693,1.5287,4220.0,4219.9,2.0456]
[1754840560585,0.446,4220.0,4219.9,2.0456]
[1754840561492,1.5287,4220.6,4220.5,0.64663]
[1754840561697,1.5287,4220.6,4220.5,1.35893]
[1754840561889,1.5287,4220.6,4220.5,2.04553]
[1754840562289,1.5287,4220.6,4220.5,1.78243]
[1754840562491,0.6165,4221.2,4221.1,0.47376]
[1754840562684,1.5287,4221.1,4221.0,0.1728]
[1754840564285,1.5287,4221.1,4221.0,1.3086]
[1754840564485,1.5287,4221.1,4221.0,1.5717]
[1754840565988,1.2602,4221.1,4221.0,1.5717]
[1754840567384,1.2602,4221.1,4221.0,1.46252984]
[1754840567591,1.5287,4221.1,4221.0,1.46252984]
[1754840567991,1.5287,4221.1,4220.9,0.47378]
[1754840568195,1.5287,4221.0,4220.9,0.64658]
[1754840568388,1.5287,4221.0,4220.9,0.47378]
[1754840568594,1.5287,4221.0,4220.9,1.99968]
[1754840571096,0.8754,4221.0,4220.9,1.99968]
[1754840571689,0.47366,4222.1,4220.9,1.99968]
[1754840571896,1.5287,4221.7,4221.6,1.99961]
[1754840572190,0.4405,4221.7,4221.6,1.99961]
[1754840572392,1.5287,4221.7,4221.6,1.99961]
[1754840574805,1.5287,4221.7,4221.3,1.11454]
[1754840575095,0.6165,4221.5,4221.4,0.47372]
[1754840575298,0.47365,4222.2,4221.7,0.47369]
[1754840575500,0.6165,4221.8,4221.6,0.47371]
[1754840575800,1.5287,4221.7,4221.6,0.47371]
[1754840576302,1.5287,4221.7,4221.6,0.64651]
[1754840576896,1.5287,4221.7,4221.6,0.83331]
[1754840578002,1.5287,4221.7,4221.6,1.99961]
[1754840579893,0.4405,4222.0,4221.9,0.1728]
[1754840580097,0.4405,4222.0,4221.1,0.75570149]
[1754840580098,0.47357,4222.9,4221.8,0.9039]
[1754840580296,0.6165,4222.8,4222.7,0.8851]
[1754840580501,2.00228,4222.8,4222.7,0.3596]
[1754840580698,2.00228,4222.8,4222.4,0.2631]
[1754840581000,0.6165,4222.4,4222.3,1.09563]
[1754840581198,1.5287,4222.4,4222.3,1.73643]
[1754840581798,1.0842,4222.4,4222.3,1.99953]
[1754840582300,1.2602,4222.6,4222.5,1.73321]
[1754840582499,1.5287,4222.6,4222.5,1.73321]
[1754840582899,1.5287,4222.6,4222.5,1.99951]
[1754840583198,1.5287,4222.6,4222.5,1.5259]
[1754840583400,1.5287,4222.6,4222.5,0.1728]
[1754840583609,1.5287,4222.3,4222.2,0.64644]
[1754840583811,1.5287,4222.3,4222.2,0.47364]
[1754840584492,0.75570149,4223.1,4221.7,23.4235489]
[1754840584493,0.6165,4222.0,4221.7,23.4235489]
[1754840584696,1.5287,4221.8,4221.7,23.4595]
[1754840584897,1.5287,4221.8,4221.7,23.7226]
[1754840585793,0.9615,4222.5,4222.4,0.47362]
[1754840585999,1.5946,4222.5,4222.4,1.5446]
[1754840586504,1.5946,4222.5,4222.4,0.99414596]
[1754840590904,1.24879841,4223.5,4223.1,0.47354]
[1754840590905,0.4149,4223.3,4223.1,0.47354]
[1754840591100,0.6331,4223.3,4223.2,0.8728]
[1754840591405,0.902,4223.3,4223.2,1.152]
[1754840591906,1.5946,4223.3,4223.2,1.152]
[1754840592701,1.1,4223.5,4223.4,0.8728]
[1754840592702,2.6946,4223.5,4223.4,0.8728]
[1754840593105,0.6331,4222.8,4222.7,2.1741389]
[1754840593308,0.6331,4222.8,4222.7,0.64699]
[1754840593309,1.5946,4222.8,4222.7,0.64699]
[1754840593603,1.5946,4222.8,4222.7,1.09789]
[1754840593808,1.5946,4222.8,4222.7,1.34629]
[1754840594108,1.5946,4222.8,4222.7,1.62549]
[1754840594310,2.002,4223.5,4223.4,0.5217]
[1754840594498,1.3689,4223.5,4223.4,1.34526464]
[1754840594704,1.3689,4223.5,4223.4,1.38320149]
[1754840595097,1.1,4223.5,4223.4,1.38320149]
[1754840596710,1.3689,4223.5,4223.4,1.38320149]
[1754840597106,1.1,4223.5,4223.4,1.38320149]
[1754840598212,0.2689,4224.6,4223.5,1.18374]
[1754840598508,1.5946,4224.5,4224.4,0.64029]
[1754840598710,0.4392,4224.5,4224.4,0.57609]
[1754840598914,0.6331,4225.0,4224.9,0.1027]
[1754840599119,0.6331,4225.0,4224.9,21.8779]
[1754840599407,1.1797,4225.0,4224.9,21.8779]
[1754840599714,1.5946,4225.0,4224.9,21.711]
[1754840600313,1.5946,4225.0,4224.9,21.8137]
[1754840600509,0.186,4225.6,4225.5,0.47327]
[1754840600712,1.5946,4225.6,4225.5,0.64017]
[1754840600912,1.5946,4225.6,4225.5,0.1669]
[1754840603609,1.1797,4225.6,4225.5,0.47328]
[1754840603810,0.2777,4225.6,4224.8,0.75570149]
[1754840604016,1.5946,4225.0,4224.9,0.47334]
[1754840604612,0.4471,4224.5,4224.4,0.47339]
[1754840604917,1.5946,4224.5,4224.4,22.17839]
[1754840605612,1.5946,4224.5,4224.4,22.28109]
[1754840605813,1.5946,4224.5,4224.4,21.705]
[1754840606518,1.5946,4224.4,4224.3,0.4734]
[1754840607017,1.5946,4224.4,4224.3,0.5761]
[1754840607210,1.1797,4224.4,4224.3,0.6403]
[1754840607411,0.9108,4224.7,4224.6,0.47338]
[1754840607616,0.5545,4225.1,4225.0,0.81363]
[1754840607816,0.5545,4225.1,4225.0,1.08253]
[1754840608419,1.3257,4225.5,4225.4,0.74939]
[1754840608620,1.3257,4225.5,4225.4,0.81359]
[1754840609019,1.3257,4225.5,4225.4,0.64669]
[1754840609412,1.5946,4225.5,4225.4,0.47329]
[1754840610721,1.5946,4225.5,4225.4,0.64669]
[1754840610918,1.5946,4225.5,4225.4,0.74939]
[1754840611221,1.5946,4225.5,4225.4,0.81359]
[1754840611416,1.4086,4225.5,4225.4,0.81359]
[1754840611621,1.5946,4225.5,4225.4,0.47329]
[1754840611822,1.5946,4225.5,4225.4,0.64669]
[1754840612718,1.5946,4225.5,4225.4,0.47329]
[1754840613118,1.1475,4225.9,4225.2,1.18328]
[1754840613320,1.1797,4225.8,4225.7,0.2761]
[1754840613623,1.5946,4225.8,4225.7,0.47325]
[1754840613823,1.5946,4225.8,4224.4,0.0642]
[1754840614026,1.5946,4225.7,4225.6,0.47326]
[1754840614325,0.902,4224.6,4224.5,0.1734]
[1754840614618,0.2689,4225.3,4225.2,0.47331]
[1754840614819,1.3169,4225.3,4225.2,0.64671]
[1754840615025,0.8234,4225.3,4225.2,1.08251]
[1754840615331,0.9108,4225.6,4225.5,0.76278]
[1754840615620,1.5882,4225.6,4225.5,0.82698]
[1754840616222,1.5882,4225.6,4225.5,0.47328]
[1754840616730,0.3984,4225.3,4225.1,21.717]
[1754840617025,0.7339,4224.3,4224.2,22.20242]
[1754840617227,1.1842,4224.3,4224.2,22.20242]
[1754840617422,1.1842,4224.3,4223.4,1.7005489]
[1754840617423,0.6303,4223.6,4223.5,1.37056]
[1754840617720,1.5826,4223.6,4223.5,0.4735]
[1754840618227,1.0287,4224.5,4224.4,0.47339]
[1754840618627,0.6303,4224.5,4224.3,0.47341]
[1754840618825,1.5826,4224.4,4224.3,0.47341]
[1754840619024,1.5826,4224.4,4224.3,0.66021]
[1754840619630,0.5539,4224.4,4224.3,0.82711]
[1754840619829,1.5826,4224.4,4224.3,0.47341]
[1754840620130,0.9523,4224.5,4223.9,0.47345]
[1754840620327,1.5826,4223.9,4223.8,0.47346]
[1754840620825,0.3984,4223.8,4223.4,21.739]
[1754840621029,1.5826,4223.5,4223.4,0.47351]
[1754840622425,1.5826,4222.9,4222.8,0.47358]
[1754840622624,0.5539,4222.8,4222.7,0.47358]
[1754840622826,1.1842,4222.8,4222.7,0.66038]
[1754840623025,1.5826,4222.8,4222.7,0.76308]
[1754840623220,1.5826,4222.8,4222.7,0.82728]
[1754840623531,1.5826,4223.2,4223.1,0.47354]
[1754840623732,1.5826,4223.1,4223.0,0.47355]
[1754840625133,0.6303,4222.5,4222.4,0.66042]
[1754840625330,1.5826,4222.5,4222.4,0.47362]
[1754840625529,1.5826,4222.5,4222.4,0.66042]
[1754840625834,1.5826,4222.5,4222.4,0.76312]
[1754840626029,1.5826,4222.5,4222.4,0.66042]
[1754840627032,1.5826,4222.5,4222.4,0.47362]
[1754840629628,0.9523,4222.4,4222.3,0.47363]
[1754840629828,1.5826,4222.4,4222.3,0.47363]
[1754840630229,1.1303,4222.1,4222.0,0.66046]
[1754840630531,1.1842,4222.1,4222.0,1.08236]
[1754840631232,1.5826,4222.1,4222.0,1.08236]
[1754840631532,1.5826,4222.1,4222.0,0.47366]
[1754840631733,1.5826,4222.0,4221.9,0.47368]
[1754840632130,1.1842,4222.0,4221.9,1.08238]
[1754840632331,1.1842,4222.3,4222.2,0.76315]
[1754840632530,0.14865518,4223.9,4222.7,0.66038]
[1754840632531,1.5826,4222.8,4222.7,0.66038]
[1754840633931,1.5826,4222.8,4222.7,0.76308]
[1754840634333,1.5826,4222.8,4222.7,0.47358]
[1754840635229,1.1842,4222.8,4222.7,1.08228]
[1754840635426,1.1842,4223.2,4223.1,0.2895]
[1754840635633,1.5826,4223.2,4223.1,0.82725]
[1754840636134,1.4072,4223.2,4223.1,0.82725]
[1754840636329,1.4072,4223.2,4223.1,1.08225]
[1754840636531,0.2749,4223.6,4223.1,1.08225]
[1754840636734,0.6303,4223.6,4223.5,0.3537]
[1754840636934,0.6303,4223.6,4223.5,0.8272]
[1754840637135,1.1842,4223.6,4223.5,0.8272]
[1754840637347,1.1842,4223.6,4223.5,1.0822]
[1754840637832,1.5826,4223.6,4223.5,0.6603]
[1754840638038,1.5826,4223.6,4223.5,0.4735]
[1754840639437,1.5826,4223.6,4223.5,0.6603]
[1754840640240,0.9093,4224.2,4224.1,0.66022]
[1754840640433,0.14885174,4225.2,4224.5,0.82709]
[1754840640434,1.1842,4224.6,4224.5,0.82709]
[1754840640634,1.183,4226.3,4225.0,0.47332]
[1754840640635,1.1842,4225.1,4225.0,0.47332]
[1754840640944,1.5826,4225.1,4225.0,0.47332]
[1754840641538,1.5826,4225.1,4225.0,0.76282]
[1754840641836,1.5826,4225.1,4225.0,0.82702]
[1754840642042,1.3036,4225.4,4225.3,0.7628]
[1754840642241,1.5826,4225.4,4225.3,0.7628]
[1754840642437,1.5826,4225.4,4225.3,0.6601]
[1754840642643,1.5826,4225.4,4225.3,0.4733]
[1754840643039,0.9523,4225.3,4224.2,0.0642]
[1754840643239,1.5826,4224.6,4224.5,0.66019]
[1754840643939,1.5826,4224.6,4224.5,0.76289]
[1754840644544,1.5826,4224.6,4224.5,0.65191637]
[1754840644936,1.5826,4224.6,4224.5,0.71611637]
[1754840645344,0.279,4224.6,4224.5,0.87431637]
[1754840645542,1.5677,4225.0,4224.9,0.76394]
[1754840645742,1.5677,4225.0,4224.9,0.82834]
[1754840646145,0.6321,4225.0,4224.8,0.47335]
[1754840646344,1.5781,4224.9,4224.8,0.47335]
[1754840646744,1.5781,4224.9,4224.8,0.66085]
[1754840646938,1.5781,4224.9,4224.8,0.76395]
[1754840647142,1.5781,4224.9,4224.8,0.66085]
[1754840647342,1.1693,4224.9,4224.8,0.82835]
[1754840647849,0.2669,4224.9,4224.8,0.98655]
[1754840649148,1.5781,4224.9,4224.8,0.82835]
[1754840650349,1.1693,4224.9,4224.8,0.82835]
[1754840650738,1.5781,4224.9,4224.8,0.47335]
[1754840651345,1.58263059,4224.9,4224.8,0.47335]
[1754840654444,1.58263059,4224.9,4224.0,1.18362]
[1754840654445,0.4505,4224.7,4224.5,0.47339]
[1754840654651,0.6321,4224.0,4223.9,0.66096]
[1754840654956,1.5781,4224.0,4223.9,0.82846]
[1754840655162,1.5781,4224.0,4223.9,0.76406]
[1754840655456,1.5781,4224.0,4223.9,0.82846]
[1754840655855,0.8014,4224.0,4223.9,0.82846]
[1754840656656,0.983,4224.0,4223.9,0.14636777]
[1754840656856,1.1693,4224.0,4223.9,0.14636777]
[1754840657156,1.5781,4224.0,4223.9,0.61982777]
[1754840661863,0.946,4223.9,4223.8,0.47347]
[1754840662064,1.5781,4223.9,4223.8,0.47347]
[1754840664563,1.5781,4223.9,4223.6,1.7005489]
[1754840664564,1.5781,4223.7,4223.6,1.7005489]
[1754840664759,1.3965,4223.6,4223.5,0.47349]
[1754840664964,1.5781,4223.6,4223.5,0.47349]